Cogmind - Beta 15 @@@ ROGUE MODE // 2025.06.19 @ 22:50:45 Player: Volvedor Result: Smashed by cave-in Performance ------------- Evolutions (0) 0 Regions Visited (0) 0 Robots Destroyed (13) 65 Value Destroyed (66) 66 Prototype IDs (0) 0 Alien Tech Used (0) 0 Bonus (0) 0 TOTAL SCORE: 131 Bonus ------- None Cogmind --------- Core Integrity 0/250 Matter 299/300 Energy 100/100 System Corruption 18% Temperature Cool (0) Movement Core (50) Location -11/Scrapyard Parts ------- > --- POWER (1) -------- (None) > --- PROPULSION (2) --- (None) > --- UTILITY (2) ------ (None) > --- WEAPON (2) ------- (None) > --- INVENTORY (5) ---- Light Ion Engine Wheel Wheel Improved Terrain Scanner Assault Rifle Peak State ------------ > --- POWER ------------ Light Ion Engine > --- PROPULSION ------- Wheel Wheel > --- UTILITY ---------- Small Storage Unit Improved Terrain Scanner > --- WEAPON ----------- Assault Rifle Assault Rifle > --- INVENTORY -------- Light Ion Engine Light Treads Light Treads Aluminum Leg Aluminum Leg Small Laser [Rating: 9] Favorites ----------- Power Light Ion Engine Engine Light Ion Engine Propulsion Wheel Wheel Wheel Utility Small Storage Unit Device Seismic Detector Storage Small Storage Unit Weapon Assault Rifle Energy Gun Small Laser Ballistic Gun Assault Rifle Special Weapon Mining Laser Build | -11 ------- Run | Yrd Slots Evolved . | . Power . | . Propulsion . | . Utility . | . Weapon . | . Parts Attached 11 | 11 Power 1 | 1 Engine 1 | 1 Core . | . Reactor . | . Propulsion 2 | 2 Treads . | . Leg . | . Wheel 2 | 2 Hover . | . Flight . | . Utility 3 | 3 Device 2 | 2 Storage 1 | 1 Processor . | . Hackware . | . Protection . | . Artifact . | . Weapon 5 | 5 Energy Gun 1 | 1 Energy Cannon . | . Ballistic Gun 2 | 2 Ballistic Cannon . | . Launcher . | . Special Weapon 2 | 2 Impact Weapon . | . Slashing Weapon . | . Piercing Weapon . | . Special Melee Weapon . | . Unidentified Prototypes . | . Parts Lost 7 | 7 Power 1 | 1 Propulsion 2 | 2 Utility 2 | 2 Weapon 2 | 2 Highest Loss Streak 6 | 6 To Critical Strikes . | . Average Backups 5 | 5 Power . | . Propulsion 2 | 2 Utility . | . Weapon 1 | 1 Tool/Special . | . Unused Backups 7 | 7 Power 1 | 1 Propulsion 6 | 6 Utility . | . Weapon . | . Tool/Special . | . Average Slot Usage (%) . | . Peak Build Rating 9 | 9 Average Rating 5 | 5 On Entrance . | . Naked Turns . | . Heaviest Build 13 | 13 Greatest Support 20 | 20 Greatest Overweight (x) . | . Average Overweight (x) . | . Largest Inventory Capacity 8 | 8 Average Capacity 7 | 7 Most Carried 8 | 8 Average Carried 6 | 6 Final Capacity 5 | 5 Final Carried 5 | 5 Class Distribution -------------------- None Dominant Class ---------------- None Resources | -11 ----------- Run | Yrd Matter Collected 442 | 442 Remotely . | . Salvage Created 294 | 294 Parts 39 | 39 Haulers Intercepted . | . Recyclers Shooed . | . Parts Field Recycled . | . Retrieved Matter . | . Parts Self-Destructed . | . Prevented . | . Kills | -11 ------- Run | Yrd Combat Hostiles Destroyed . | . Classes Destroyed 3 | 3 Worker 4 | 4 Tunneler 8 | 8 Recycler 1 | 1 Best Kill Streak 5 | 5 Combat Bots Only . | . Max Kills in Single Turn 2 | 2 Gunslinging . | . Exploded . | . Melee . | . Uniques/NPCs Destroyed . | . Combat | -11 -------- Run | Yrd Hostile Shots Fired . | . Missed . | . Hits . | . Damage Taken 775 | 775 Core 280 | 280 Absorbed by Shields . | . Core Remaining (%) . | . Volleys Fired 41 | 41 Largest 2 | 2 Hottest 200 | 200 Shots Fired 80 | 80 Gun 44 | 44 Cannon . | . Launcher . | . Special 36 | 36 Kinetic 44 | 44 Thermal 36 | 36 Explosive . | . Electromagnetic . | . Robot Hit Streak 4 | 4 Robot Miss Streak 2 | 2 Penetration Max . | . Secondary Targets . | . Shots Hit Robots 22 | 22 Core Hits 14 | 14 Critical Kills . | . Critical Parts Destroyed 1 | 1 Critical Strikes 1 | 1 Destroy 1 | 1 Melee Attacks . | . Impact . | . Slashing . | . Piercing . | . Sneak Attacks . | . Combat Hostiles . | . Follow-up Attacks . | . Damage Inflicted 294 | 294 Guns 294 | 294 Cannons . | . Explosions . | . Melee . | . Ramming . | . Kinetic 294 | 294 Thermal . | . Explosive . | . Electromagnetic . | . Impact . | . Slashing . | . Piercing . | . Highest Corruption 18 | 18 Average Corruption 14 | 14 Corruption Purged . | . Corruption Blocked . | . Effects 9 | 9 Message Errors 3 | 3 Matter Fused 2 | 2 Heat Flow Errors 1 | 1 Energy Discharges 3 | 3 Overload Shots . | . Overflow Damage . | . Projectiles . | . Explosions . | . Melee . | . Knockbacks . | . Impact . | . Kinetic . | . Secondary . | . Self-Inflicted Damage . | . Shots . | . Rammed . | . Targets Rammed . | . Kicked . | . Crushed . | . Highest Temperature 200 | 200 Average Temperature 68 | 68 Received Heat Transfer . | . Siege Activations . | . Martial Activations . | . Shielding Activations . | . Robots Disrupted . | . Combat Hostiles . | . Robots Corrupted . | . Combat Hostiles . | . Parts Fried . | . Impact Corruptions . | . Robots Melted . | . Combat Hostiles . | . Parts Melted . | . Heat Transferred . | . Parts Sabotaged . | . Parts Stolen . | . Parts Stripped . | . Power Chain Reactions . | . Alert | -11 ------- Run | Yrd Maximum Alert Level . | . Low Security (%) 100 | 100 Level 1 . | . Level 2 . | . Level 3 . | . Level 4 . | . Level 5 . | . High Security . | . Max Security . | . Peak Influence 15 | 15 Initial . | . Average 1 | 1 Influence Increases 65 | 65 Destroy 0b10 Robot/NC 65 | 65 Influence Decreases 65 | 65 Time Decay 65 | 65 Squads Dispatched . | . Investigation . | . Extermination . | . Reinforcement . | . Assault . | . Garrison . | . Intercept . | . Searches Triggered . | . Construction Impeded . | . Haulers Reinforced . | . Active Scanning Responses . | . Cargo Convoy Interrupts . | . Stealth | -11 --------- Run | Yrd Distress Signals . | . Communications Jammed . | . Distress Signals . | . Times Spotted . | . Peak Tracking Total . | . Tactical Retreats . | . Traps | -11 ------- Run | Yrd Traps Triggered . | . Indirectly . | . Trap Hack Attempts . | . Triggered . | . Disarmed . | . Reprogrammed . | . Reused . | . Traps Extracted . | . Installed . | . Triggered . | . Machines | -11 ---------- Run | Yrd Machines Disabled . | . Max in Single Turn . | . Machines Repaired . | . Machines Dismantled . | . Machines Sabotaged . | . Overloaded Fab Kills . | . Hacking | -11 --------- Run | Yrd Machines Accessed . | . Terminals . | . Fabricators . | . Repair Stations . | . Recycling Units . | . Scanalyzers . | . Garrison Access . | . Total Hacks . | . Successful . | . Failed . | . Catastrophic . | . Database Lockouts . | . Manual . | . Terminals . | . Fabricators . | . Repair Stations . | . Recycling Units . | . Scanalyzers . | . Garrison Access . | . Terminal Hacks . | . Fabricator Hacks . | . Repair Station Hacks . | . Recycling Unit Hacks . | . Scanalyzer . | . Garrison Access Hacks . | . Unauthorized Hacks . | . Terminals . | . Fabricators . | . Repair Stations . | . Recycling Units . | . Scanalyzers . | . Garrison Access . | . Data Cores Recovered . | . Used . | . Hacking Detections . | . Full Trace Events . | . Feedback Events . | . Feedback Blocked . | . Robot Schematics Acquired . | . Robots Built . | . Authchips . | . Time . | . Total Robot Build Rating . | . Part Schematics Acquired . | . Parts Built . | . Authchips . | . Time . | . Total Part Build Rating . | . Parts Repaired . | . Time . | . Parts Recycled . | . Recycled Matter . | . Retrieved Matter . | . Retrieved Components . | . Parts Scanalyzed . | . Part Schematics Acquired . | . Parts Damaged . | . Bothacking | -11 ------------ Run | Yrd Used RIF Installer . | . Robots Hacked . | . Non-combat . | . Combat . | . Robot Hacks Applied . | . Relay Couplers Released . | . Fabnet Peak Effective % . | . Robots Rewired . | . Allies Hacked . | . Hacks Repelled . | . Allies | -11 -------- Run | Yrd Total Allies . | . Largest Group . | . Highest-Rated Group . | . Highest-Rated Ally . | . Total Orders . | . Ally Attacks . | . Total Damage . | . Kills . | . Allies Corrupted . | . Allies Melted . | . Intel | -11 ------- Run | Yrd Active Infowar (turns) 559 | 559 Terrain 156 | 156 Seismic 403 | 403 Robot Analysis Total . | . Derelict Logs Recovered . | . Drone Launches . | . Drone Recoveries . | . Exploration | -11 ------------- Run | Yrd Turns Passed 866 | 866 Spaces Moved 232 | 232 Core 4 | 4 Treads . | . Legs . | . Wheels 228 | 228 Hover . | . Flight . | . Fastest Speed 50 | 50 Average Speed 79 | 79 Slowest Speed 80 | 80 Overloaded Moves . | . Propulsion Burnouts . | . Robots Hopped . | . Potential Cave-ins 6 | 6 Cave-ins Triggered 10 | 10 Exploration Rate (%) 13 | 13 Regions Visited . Branch Regions . Pre-discovered Areas . | . Known Exits Taken . | . Unknown Exits Taken . | . Scrap Searched . | . Spaces Dug 18 | 18 Terrain Destroyed 22 | 22 Melee . | . Projectile 22 | 22 AOE . | . Terrain Rammed . | . Walls Destroyed . | . Machines Disabled . | . Actions | -11 --------- Run | Yrd Total 759 | 759 Wait 459 | 459 Move 232 | 232 Hop . | . Pick Up 11 | 11 Fast Attach 7 | 7 Attach . | . Detach . | . Swap 4 | 4 Drop 5 | 5 Fire 41 | 41 Melee . | . Ram . | . Kick . | . Crush . | . Escape Stasis . | . Rewire . | . Trap . | . Miscellaneous . | . Route ------- -11/Scrapyard (discovered 1 exit: [*Mat]) History --------- Turn | Location | Event 9 | -11/Scrapyard | Discovered new exit (range 15) 638 | -11/Scrapyard | Crushed by falling debris 653 | -11/Scrapyard | Crushed by falling debris 656 | -11/Scrapyard | Crushed by falling debris 656 | -11/Scrapyard | System corruption reached 10% 672 | -11/Scrapyard | Crushed by falling debris 703 | -11/Scrapyard | Lost 6 parts (1p2n1u2w) 753 | -11/Scrapyard | Crushed by falling debris 798 | -11/Scrapyard | Crushed by falling debris 849 | -11/Scrapyard | Crushed by falling debris 849 | -11/Scrapyard | Core integrity fell below 50% 860 | -11/Scrapyard | Crushed by falling debris 867 | -11/Scrapyard | Crushed by falling debris 867 | -11/Scrapyard | Core integrity fell below 20% 868 | -11/Scrapyard | Crushed by falling debris 868 | -11/Scrapyard | Smashed by cave-in Last Messages --------------- 00707_ System corrupted: Heat flow error (+127). 00747_ System corrupted: Matter fused (-6). 00753_ The unstable cave ceiling collapses. 00753_ Crushed by falling debris. 00788_ EQ#1DES2DMVUQR|G&RLTV,GN6ARK7A 00798_ The unstable cave ceiling collapses. 00798_ Crushed by falling debris. 00806_ 3U:LBHYDLSLAIGLATOBUPMTAEV I 00829_ System corrupted: Energy discharge (-25). 00848_ System corrupted: Energy discharge (-28). 00849_ The unstable cave ceiling collapses. 00849_ Crushed by falling debris. 00860_ The unstable cave ceiling collapses. 00860_ Crushed by falling debris. 00867_ The unstable cave ceiling collapses. 00867_ Crushed by falling debris. 00867_ Sml. Storage Unit destroyed. 00867_ System corrupted by crushing effect (+3). 00868_ The unstable cave ceiling collapses. 00868_ Crushed by falling debris. Map ----- +----------------------------------------------------+ | ????#### # ##???????????????#????????????????????? | | ???????### #?????????????????????????????????????? | | ?????????# #?????????????????????????????????????? | | ?????????# ###???????????????????????????????????? | | ????????## # #???????????????????????????????????? | | ????????# #???????????????????????????????????? | | ????????### ##???????????????????????????????????? | | ??????????# #????????????????????????????????????? | | ??????????# #????????????????????????????????????? | | ??????????# #????????????????????????????????????? | | ?????????####????????????????????????????????????? | | ?????????# ###???????????????????????????????????? | | ?????????# ####??????????????????????????????????? | | ?????????### ##?????????????????????????????????? | | ???????????### ##????????????????????????????????? | | ?????????????## ##???????????????????????????????? | | ??????????????## ###?????????????????????????????? | | ???????????????## #?????????????????????????????? | | ????????????????#####????????????????????????????? | | ?????????????????## ##???????????????????????????? | | ??????????????????## ##??????????????????????????? | | ???????????????????## ###????????????????????????? | | ????????????????????### #????????????????????????? | | ?????????????????????## ##???????????????????????? | | ??????????????????????#####??????????????????????? | | ???????????????????????##@#??????????????????????? | | ????????????????????????###??????????????????????? | | ?????????????????????????????????????????????????? | | ?????????????????????????????????????????????????? | | ?????????????????????????????????????????????????? | | ?????????????????????????????????????????????????? | | ?????????????????????????????????????????????????? | | ?????????????????????????????????????????????????? | | ?????????????????????????????????????????????????? | | | | | | | | | | | | | | | | | | | | | | | | | | | | | | | | | +----------------------------------------------------+ Best States ------------- Heat Dissipation 25 Energy Generation 10 Energy Capacity 125 Matter Stores 300 Matter Capacity 300 Sight Range 16 Terrain Scan Range 16 Terrain Scan Density 10 Evasion (%) 44 Item Schematics ----------------- None Robot Schematics ------------------ None Fabricated ------------ Nothing Repaired ---------- Nothing Alien Tech Used ----------------- None Achievements -------------- None Challenges ------------ None Game ------ Seed BlastScrapoidDiverter Manual? 0 Play Time 00:28:26 Cumulative 26.1 hours Start 2025.06.19 @ 22:01:05 End 2025.06.19 @ 22:50:45 Sessions 2 Manual Loads 0 Difficulty Rogue Special Mode None Game No. 26 Rogue 26 Adventurer 0 Explorer 0 Win Type - Total 0 Types 0/0/0/0/0/0/0/0/0/0 Lore% 19 Gallery% 20 Achievement% 16 Wizard Run 0 Options --------- Layout 2 ASCII 0 Keyboard 0 Movement Numpad Keybinds 0 Fullscreen 1 Font 16/TerminusCaps Map View 55x47 Zoom Use 88% Tactical HUD 1 Map Filters NONE Filters NONE Steam 1 RUN: 179639a6-0442-4b00-8f48-11233cd6e0aa